Cogmind - Beta 16 @@@ ROGUE MODE // 2026.01.22 @ 17:41:20 Player: YoKa Result: Destroyed by G-47 Trooper with Particle Gun Performance ------------- Evolutions (2) 1000 Regions Visited (4) 800 Robots Destroyed (62) 310 Value Destroyed (1333) 1333 Prototype IDs (0) 0 Alien Tech Used (0) 0 Bonus (0) 0 TOTAL SCORE: 3443 Bonus ------- None Cogmind --------- Core Integrity 0/550 Matter 300/300 Energy 100/100 System Corruption 0% Temperature Cool (9) Movement Core (350) Ox6 Location -8/Materials Parts ------- > --- POWER (1) -------- (None) > --- PROPULSION (4) --- (None) > --- UTILITY (4) ------ Large Storage Unit Hacking Suite > --- WEAPON (2) ------- (None) > --- INVENTORY (15) --- Improved VTOL Module Improved EM Shotgun Improved EM Shotgun Improved Medium Laser Improved Medium Laser Precision Beam Rifle Precision Beam Rifle Advanced Beam Rifle Light Cannon Mini Grenade Launcher Datajack Peak State ------------ > --- POWER ------------ (None) > --- PROPULSION ------- Light Treads Light Treads Light Treads > --- UTILITY ---------- Large Storage Unit Hardened Light Armor Plating Hacking Suite Hacking Suite > --- WEAPON ----------- Mini Grenade Launcher Makeshift Hammer > --- INVENTORY -------- Improved VTOL Module Improved EM Shotgun Improved EM Shotgun Improved Medium Laser Improved Medium Laser Precision Beam Rifle Precision Beam Rifle Advanced Beam Rifle Light Cannon Mini Grenade Launcher Datajack [Rating: 21] Favorites ----------- Power Ion Engine Engine Ion Engine Propulsion Light Treads Treads Light Treads Utility Large Storage Unit Device Terrain Scanner Storage Large Storage Unit Hackware Hacking Suite Protection Hardened Light Armor Plating Weapon Autogun Energy Gun Makeshift Laser Ballistic Gun Autogun Ballistic Cannon Light Cannon Launcher Grenade Launcher Impact Weapon Makeshift Hammer Build | -11 -10 -10 -10 -8 ------- Run | Yrd Mat Min Sub Mat Slots Evolved 4 | . . . . 4 Power . | . . . . . Propulsion 2 | . . . . 2 Utility 2 | . . . . 2 Weapon . | . . . . . Parts Attached 26 | 7 9 . 5 5 Power 3 | 1 . . 1 1 Engine 3 | 1 . . 1 1 Core . | . . . . . Reactor . | . . . . . Propulsion 5 | 2 . . 2 1 Treads 5 | 2 . . 2 1 Leg . | . . . . . Wheel . | . . . . . Hover . | . . . . . Flight . | . . . . . Utility 8 | 2 4 . . 2 Device 2 | . 2 . . . Storage 3 | 2 1 . . . Processor . | . . . . . Hackware 2 | . . . . 2 Protection 1 | . 1 . . . Artifact . | . . . . . Weapon 10 | 2 5 . 2 1 Energy Gun 3 | 1 1 . 1 . Energy Cannon . | . . . . . Ballistic Gun 3 | 1 2 . . . Ballistic Cannon 1 | . 1 . . . Launcher 2 | . 1 . . 1 Special Weapon . | . . . . . Impact Weapon 1 | . . . 1 . Slashing Weapon . | . . . . . Piercing Weapon . | . . . . . Special Melee Weapon . | . . . . . Unidentified Prototypes . | . . . . . Parts Lost 16 | . . . 5 11 Power 3 | . . . 1 2 Propulsion 5 | . . . 2 3 Utility 2 | . . . . 2 Weapon 6 | . . . 2 4 Highest Loss Streak 6 | . . . 4 6 To Critical Strikes . | . . . . . Average Backups 6 | 2 6 8 6 6 Power . | . 1 1 . . Propulsion 1 | . 1 3 1 . Utility . | . . 1 1 . Weapon 2 | 1 2 2 2 4 Tool/Special . | . . . . . Unused Backups 11 | . 1 . . 10 Power . | . . . . . Propulsion 1 | . . . . 1 Utility . | . . . . . Weapon 9 | . 1 . . 8 Tool/Special 1 | . . . . 1 Average Slot Usage (%) 92 | . 97 100 97 78 Engine 12 | . 14 14 13 7 Treads 26 | . 28 28 26 24 Device 1 | . 4 . . . Storage 12 | . 14 14 14 9 Hackware 3 | . . . . 14 Protection 9 | . 7 14 14 8 Energy Gun 4 | . 6 . 5 4 Ballistic Gun 11 | . 8 14 17 7 Ballistic Cannon 1 | . 3 . . . Launcher 6 | . 9 14 2 1 Peak Build Rating 21 | 7 10 10 13 21 Average Rating 11 | 4 8 10 11 16 On Entrance 7 | . 6 10 10 13 Avg Prop Armor Cover (%) . | . . . . . Naked Turns . | . . . . . Heaviest Build 36 | 14 36 36 36 33 Greatest Support 60 | 40 40 40 40 60 Greatest Overweight (x) 10 | . . . 10 7 Average Overweight (x) . | . . . . . Largest Inventory Capacity 15 | 8 15 15 15 15 Average Capacity 14 | 7 13 15 15 15 Most Carried 12 | 5 9 8 8 12 Average Carried 6 | 1 6 8 6 6 Final Capacity 15 | 8 15 15 15 15 Final Carried 11 | 2 8 8 6 11 Class Distribution -------------------- 79% | Mutant 20% | Scavenger-Mutant Dominant Class ---------------- Mutant | -10/Materials Mutant | -10/Mines Mutant | -10/Subcaves Scavenger-Mutant | -8/Materials Resources | -11 -10 -10 -10 -8 ----------- Run | Yrd Mat Min Sub Mat Matter Collected 1232 | 282 370 52 197 331 Remotely . | . . . . . Salvage Created 1904 | 64 740 97 185 818 Parts 109 | 2 48 11 18 30 Haulers Intercepted 4 | . 2 . . 2 Recyclers Shooed 1 | . 1 . . . Parts Field Recycled . | . . . . . Retrieved Matter . | . . . . . Parts Self-Destructed 14 | . . . 14 . Prevented . | . . . . . Parts Restored . | . . . . . Kills | -11 -10 -10 -10 -8 ------- Run | Yrd Mat Min Sub Mat Combat Hostiles Destroyed 43 | . 17 6 7 13 Melee 2 | . . . . 2 Guns 28 | . 7 6 5 10 AOE 12 | . 10 . 2 . Classes Destroyed 11 | 1 8 . . 2 Worker 2 | . 2 . . . Builder 2 | . 2 . . . Tunneler 1 | . . . . 1 Hauler 4 | . 2 . . 2 Recycler 5 | 1 2 . . 2 Operator 3 | . 2 . . 1 Watcher 2 | . 2 . . . Swarmer 20 | . 8 6 3 3 Grunt 14 | . 6 . . 8 Sentry 2 | . . . . 2 Subdweller 7 | . 3 . 4 . Best Kill Streak 7 | 1 4 3 3 7 Combat Bots Only 3 | . 3 3 3 3 Max Kills in Single Turn 3 | 1 3 1 2 1 Gunslinging . | . . . . . Exploded 2 | . 2 . 2 . Melee 1 | . . . . 1 Uniques/NPCs Destroyed . | . . . . . Combat | -11 -10 -10 -10 -8 -------- Run | Yrd Mat Min Sub Mat Hostile Shots Fired 292 | . 60 19 86 127 Missed 82 | . 18 2 30 32 Hits 210 | . 42 17 56 95 Projectile 210 | . 42 17 56 95 AOE 1 | . . . . 1 Critical Strikes 10 | . 2 . 1 7 Damage Taken 3089 | . 436 138 698 1817 Core 789 | . 121 . 115 553 Absorbed by Shields . | . . . . . Regen/Repaired (Parts) 362 | . . . . 362 Core Remaining (%) 52 | 100 . . 5 . Volleys Fired 156 | 4 50 13 27 62 Largest 2 | 2 2 1 2 2 Hottest 80 | 60 80 23 73 73 Shots Fired 241 | 8 81 13 48 91 Gun 223 | 8 64 13 47 91 Cannon . | . . . . . Launcher 18 | . 17 . 1 . Special . | . . . . . Kinetic 138 | 4 26 13 33 62 Thermal 43 | . . . 14 29 Explosive 18 | . 17 . 1 . Electromagnetic 42 | 4 38 . . . Robot Hit Streak 14 | 3 9 2 12 14 Robot Miss Streak 7 | 2 7 1 2 3 Penetration Max . | . . . . . Secondary Targets 2 | . . . 1 1 Max Gunslinging Chain 1 | . . . 1 1 Shots Hit Robots 158 | 4 45 8 34 67 Core Hits 88 | 2 39 6 12 29 Critical Kills 1 | . . . . 1 Critical Parts Destroyed 2 | . . . . 2 Critical Strikes 6 | . . . . 6 Burn 3 | . . . . 3 Smash 3 | . . . . 3 Melee Attacks 14 | . . . 9 5 Impact 14 | . . . 9 5 Slashing . | . . . . . Piercing . | . . . . . Sneak Attacks . | . . . . . Combat Hostiles . | . . . . . Follow-up Attacks . | . . . . . Damage Inflicted 3799 | 48 1846 112 639 1154 Guns 2321 | 48 636 112 550 975 Cannons . | . . . . . Explosions 1287 | . 1198 . 89 . Melee 179 | . . . . 179 Ramming 12 | . 12 . . . Kinetic 1338 | 11 216 112 361 638 Thermal 690 | . 164 . 189 337 Explosive 1123 | . 1034 . 89 . Electromagnetic 457 | 37 420 . . . Impact 179 | . . . . 179 Slashing . | . . . . . Piercing . | . . . . . Highest Corruption . | . . . . . Average Corruption . | . . . . . Corruption Purged . | . . . . . Corruption Blocked . | . . . . . Overload Shots . | . . . . . Overflow Damage 94 | . 16 . . 78 Projectiles . | . . . . . Explosions 16 | . 16 . . . Melee 78 | . . . . 78 Knockbacks . | . . . . . Impact . | . . . . . Kinetic . | . . . . . Secondary . | . . . . . Self-Inflicted Damage 43 | . 32 . 11 . Shots 2 | . 1 . 1 . Rammed 3 | . 3 . . . Targets Rammed 3 | . 3 . . . Kicked . | . . . . . Crushed . | . . . . . Highest Temperature 261 | . 108 16 19 261 Average Temperature 46 | . 29 8 5 74 Received Heat Transfer 987 | . 102 . 300 585 Siege Activations . | . . . . . Martial Activations . | . . . . . Shielding Activations . | . . . . . Robots Disrupted . | . . . . . Combat Hostiles . | . . . . . Robots Corrupted 1 | . . . . 1 Combat Hostiles 1 | . . . . 1 Parts Fried 3 | . 1 . . 2 Impact Corruptions 2 | . . . . 2 Robots Melted . | . . . . . Combat Hostiles . | . . . . . Parts Melted 5 | . 2 . 1 2 Heat Transferred 1619 | . 250 . 407 962 Parts Sabotaged . | . . . . . Parts Stolen . | . . . . . Parts Stripped . | . . . . . Power Chain Reactions 2 | . 2 . . . Alert | -11 -10 -10 -10 -8 ------- Run | Yrd Mat Min Sub Mat Maximum Alert Level 1 | . 1 . . . Low Security (%) 91 | 100 82 100 . 100 Level 1 8 | . 17 . . . Level 2 . | . . . . . Level 3 . | . . . . . Level 4 . | . . . . . Level 5 . | . . . . . High Security . | . . . . . Max Security . | . . . . . Peak Influence 254 | 5 254 138 . 126 Initial 68 | . . 68 . . Average 81 | . 116 69 . 48 Influence Increases 1305 | 5 574 140 210 376 Destroy 0b10 Robot/C 720 | . 280 120 60 260 Destroy 0b10 Robot/NC 95 | 5 60 . . 30 Destroy Leader 152 | . 68 20 . 64 Successful Hack 19 | . 14 . . 5 Disable Machine 45 | . 45 . . . Destroy Structure 79 | . 77 . . 2 Lose Combat Pursuer 195 | . 30 . 150 15 Influence Decreases 1304 | 5 398 306 220 375 Entered New Map 114 | . . 108 6 . Time Decay 1040 | 5 398 198 174 265 Lost Part 150 | . . . 40 110 Squads Dispatched 7 | . 4 . . 3 Investigation 4 | . 2 . . 2 Extermination . | . . . . . Reinforcement 3 | . 2 . . 1 Assault . | . . . . . Garrison . | . . . . . Intercept . | . . . . . Searches Triggered . | . . . . . Construction Impeded . | . . . . . Haulers Reinforced . | . . . . . Active Scanning Responses . | . . . . . Cargo Convoy Interrupts . | . . . . . Stealth | -11 -10 -10 -10 -8 --------- Run | Yrd Mat Min Sub Mat Distress Signals 6 | . 1 1 . 4 Communications Jammed . | . . . . . Distress Signals . | . . . . . Times Spotted 78 | . 32 5 13 28 Peak Tracking Total 9 | . 4 3 6 9 Tactical Retreats 7 | . 2 . 4 1 Traps | -11 -10 -10 -10 -8 ------- Run | Yrd Mat Min Sub Mat Traps Triggered . | . . . . . Indirectly . | . . . . . Trap Hack Attempts . | . . . . . Triggered . | . . . . . Disarmed . | . . . . . Reprogrammed . | . . . . . Reused . | . . . . . Traps Extracted . | . . . . . Installed . | . . . . . Triggered . | . . . . . Machines | -11 -10 -10 -10 -8 ---------- Run | Yrd Mat Min Sub Mat Machines Disabled 3 | . 3 . . . Max in Single Turn 1 | . 1 . . . Machines Repaired . | . . . . . Machines Dismantled . | . . . . . Machines Sabotaged . | . . . . . Overloaded Fab Kills . | . . . . . Hacking | -11 -10 -10 -10 -8 --------- Run | Yrd Mat Min Sub Mat Machines Accessed 7 | . 5 . . 2 Terminals 6 | . 5 . . 1 Fabricators . | . . . . . Repair Stations 1 | . . . . 1 Recycling Units . | . . . . . Scanalyzers . | . . . . . Garrison Access . | . . . . . Total Hacks 29 | . 16 . . 13 Successful 12 | . 5 . . 7 Failed 17 | . 11 . . 6 Catastrophic 1 | . 1 . . . Database Lockouts . | . . . . . Manual 19 | . 13 . . 6 Terminals 22 | . 16 . . 6 Fabricators . | . . . . . Repair Stations 7 | . . . . 7 Recycling Units . | . . . . . Scanalyzers . | . . . . . Garrison Access . | . . . . . Terminal Hacks 3 | . 3 . . . Record 1 | . 1 . . . Branch Access Points 1 | . 1 . . . Alert Level 1 | . 1 . . . Fabricator Hacks . | . . . . . Repair Station Hacks 6 | . . . . 6 Scan Component 3 | . . . . 3 Repair 3 | . . . . 3 Recycling Unit Hacks . | . . . . . Scanalyzer . | . . . . . Garrison Access Hacks . | . . . . . Unauthorized Hacks 3 | . 2 . . 1 Terminals 3 | . 2 . . 1 Botnet 1 | . 1 . . . Operators 2 | . 1 . . 1 Fabricators . | . . . . . Repair Stations . | . . . . . Recycling Units . | . . . . . Scanalyzers . | . . . . . Garrison Access . | . . . . . Data Cores Recovered . | . . . . . Used . | . . . . . Hacking Detections 7 | . 5 . . 2 Full Trace Events 4 | . 2 . . 2 Feedback Events . | . . . . . Feedback Blocked . | . . . . . Robot Schematics Acquired . | . . . . . Robots Built . | . . . . . Authchips . | . . . . . Time . | . . . . . Total Robot Build Rating . | . . . . . Part Schematics Acquired . | . . . . . Parts Built . | . . . . . Authchips . | . . . . . Time . | . . . . . Total Part Build Rating . | . . . . . Part Studies Acquired . | . . . . . Parts Repaired 3 | . . . . 3 Time 84 | . . . . 84 Parts Recycled . | . . . . . Recycled Matter . | . . . . . Retrieved Matter . | . . . . . Retrieved Components . | . . . . . Parts Scanalyzed . | . . . . . Part Schematics Acquired . | . . . . . Parts Damaged . | . . . . . Bothacking | -11 -10 -10 -10 -8 ------------ Run | Yrd Mat Min Sub Mat Used RIF Installer . | . . . . . Robots Hacked . | . . . . . Non-combat . | . . . . . Combat . | . . . . . Robot Hacks Applied . | . . . . . Relay Couplers Released . | . . . . . Fabnet Peak Effective % . | . . . . . Robots Rewired . | . . . . . Allies Hacked . | . . . . . Hacks Repelled . | . . . . . Allies | -11 -10 -10 -10 -8 -------- Run | Yrd Mat Min Sub Mat Total Allies . | . . . . . Largest Group . | . . . . . Highest-Rated Group . | . . . . . Highest-Rated Ally . | . . . . . Total Orders . | . . . . . Ally Attacks . | . . . . . Total Damage . | . . . . . Kills . | . . . . . Allies Corrupted . | . . . . . Allies Melted . | . . . . . Intel | -11 -10 -10 -10 -8 ------- Run | Yrd Mat Min Sub Mat Active Infowar (turns) 311 | . 311 . . . Terrain 311 | . 311 . . . Robot Analysis Total . | . . . . . Derelict Logs Recovered . | . . . . . Drone Launches . | . . . . . Drone Recoveries . | . . . . . Exploration | -11 -10 -10 -10 -8 ------------- Run | Yrd Mat Min Sub Mat Turns Passed 3138 | 126 1149 407 672 784 Spaces Moved 1535 | 68 608 236 349 274 Core 26 | 10 . . 3 13 Treads 1509 | 58 608 236 346 261 Legs . | . . . . . Wheels . | . . . . . Hover . | . . . . . Flight . | . . . . . Fastest Speed 50 | 50 160 160 160 160 Average Speed 162 | 143 160 160 163 171 Slowest Speed 550 | 160 160 160 550 400 Overloaded Moves . | . . . . . Propulsion Burnouts . | . . . . . Robots Hopped . | . . . . . Potential Cave-ins . | . . . . . Cave-ins Triggered . | . . . . . Exploration Rate (%) 37 | 6 83 47 28 24 Regions Visited 4 Branch Regions 2 Pre-discovered Areas . | . . . . . Known Exits Taken 1 | . 1 . . . Unknown Exits Taken 3 | 1 . 1 1 . Scrap Searched 1 | . . 1 . . Spaces Dug . | . . . . . Terrain Destroyed 79 | . 74 . 5 . Melee . | . . . . . Projectile . | . . . . . AOE 79 | . 74 . 5 . Terrain Rammed . | . . . . . Walls Destroyed . | . . . . . Machines Disabled . | . . . . . Actions | -11 -10 -10 -10 -8 --------- Run | Yrd Mat Min Sub Mat Total 1956 | 89 707 255 398 507 Wait 167 | . 14 7 3 143 Move 1531 | 67 607 235 348 274 Hop . | . . . . . Pick Up 41 | 9 15 . 3 14 Fast Attach . | . . . . . Attach 23 | 7 2 . 5 9 Detach 1 | 1 . . . . Swap 11 | . 8 . 3 . Drop 9 | 1 8 . . . Fire 156 | 4 50 13 27 62 Melee 14 | . . . 9 5 Ram . | . . . . . Kick . | . . . . . Crush 3 | . 3 . . . Escape Stasis . | . . . . . Rewire . | . . . . . Trap . | . . . . . Miscellaneous . | . . . . . Route ------- -11/Scrapyard -10/Materials (discovered 3 exits: [*Mat x2] / *Min) -10/Mines -10/Subcaves (discovered 2 exits: *Mat / [*Rec]) -8/Materials History --------- Turn | Location | Event 5 | -11/Scrapyard | Discovered new exit (range 15) 127 | -11/Scrapyard | Entered Materials 315 | -10/Materials | Build established: Mutant 568 | -10/Materials | Discovered new exit (range 14) 592 | -10/Materials | Identified exit to Mines 662 | -10/Materials | Discovered new exit (range 10) 727 | -10/Materials | Derelicts attacked the area 1167 | -10/Materials | Discovered new exit (range 5) 1276 | -10/Materials | Entered Mines 1546 | -10/Mines | Assembled infested the area 1551 | -10/Mines | Assisted by a Guerilla fighting off Assembled 1664 | -10/Mines | Discovered new exit (range 13) 1683 | -10/Mines | Entered Subcaves 1684 | -10/Subcaves | Approached by a straggling Scientist 1812 | -10/Subcaves | Core integrity fell below 50% 1829 | -10/Subcaves | Discovered new exit (range 15) 1868 | -10/Subcaves | Lost 4 parts (1p2n1w) 2115 | -10/Subcaves | Shifting Twisted Machinery released Mak. Light Armor Plating 2116 | -10/Subcaves | Shifting Twisted Machinery released Sub. Power Source 2245 | -10/Subcaves | Core integrity fell below 20% 2267 | -10/Subcaves | Discovered new exit (range 10) 2355 | -10/Subcaves | Entered Materials 2355 | -8/Materials | Evolved 4 slots: Propulsion x2, Utility x2 2420 | -8/Materials | Repaired Lgt. Treads 2454 | -8/Materials | Repaired Hrd. Light Armor Plating 2496 | -8/Materials | Repaired Lgt. Treads 2808 | -8/Materials | Build established: Scavenger-Mutant 3109 | -8/Materials | Core integrity fell below 50% 3118 | -8/Materials | Core integrity fell below 20% 3122 | -8/Materials | Lost 6 parts (3n2u1w) 3139 | -8/Materials | Destroyed by G-47 Trooper with Particle Gun Last Messages --------------- G-47 Trooper destroyed. The unstable cave ceiling collapses. 30 Matter crushed. The unstable cave ceiling collapses. Penetrated by Slug. Knocked back. K-01 Serf collects debris. Knocked back. U-05 Engineer builds a Wall. Knocked back. M-13 Machinist repairs G-47 Trooper Aluminum Leg. Knocked back. Slug penetrates Hadron Collector. Knocked back. Slug penetrates Hadron Collector. Mak. Hammer destroyed. U-05 Engineer lays Concrete. Critical hit (Burn: +37). U-05 Engineer lays Concrete. Map ----- +----------------------------------------------------+ | ??? #### ###### ## %#######! #??# | | ?? """ #??# #????# ##=%#?????# #??###### | | ??""""" #??# #######+#####%%#?????# ####### | | ? """"" #??# *!!#?????# | | ? """"" #??# %#?????# | | # """ [= #??# """ ######?????# | | ??#####+###??# """ =! #??????????########### | | ????# %!##### """ !! #????????????????????## | | ????# ! ####??????????????????# | | ????# ! % +??????????????????# | | ????# ######" "######+#####??????????????????# | | ###### ##????#"Y"#?# #?????????????????? | | # #?????#"""#?# """"" #?????????????????? | | + #??########## """"" #?????????????????? | | # #### # """"" =#??????????????????## | | # + !# """"" #???????????????????? | | # #### """ # """"" #???????????????????? | | # #??# """"" #?""""" #???????????????????? | | ###### #??# """"" #?""""" #???????????????????? | | ###??# #??# """"" #? #???????????????????? | | ?# #??# """! #?########???????????????????? | | !!!?# #??# #????????????????????????????? | | !!! # #??# ! #?????????######?????????????? | | !!! # #??######/###??????### ###???????????? | | / ######## ######### # #####???????? | | """ # ##% %%@ # #???????? | | """ ## ## " # #???????? | | """ ??# ## [ "% [[! #???????? | | ??# ## gH"" % !! #???????? | | ##???#### ##### ##! " u #[! #???????? | | #????????# #??## ## % % =u= # #???????? | | ?????????# #??# ###+######/#### #+###????????? | | ?????????# #??# ==% ????? | | ?????????# #??# " ????? | | ?????????#+#??# ????? | | ??????????????# ########################?????? | | ??????????????## ##????????????????????????????? | | ???????????????# #?????????????????????????????? | | ???????????????# #?????????????????????????????? | | ???????????????# #?????????????????????????????? | | ???????????????# #?????????????????????????????? | | ???????????????# #?????????????????????????????? | | ???????????????# #?????????????????????????????? | | ??????????????? ??????????????????????????????? | | ??????????????? ??????????????????????????????? | | ??????????????? ??????????????????????????????? | | ??????????????? ??????????????????????????????? | | ????????????????? ???????????????????????????????? | | ?????????????????????????????????????????????????? | | ?????????????????????????????????????????????????? | +----------------------------------------------------+ Best States ------------- Heat Dissipation 31 Energy Generation 10 Energy Capacity 250 Matter Stores 300 Matter Capacity 300 Sight Range 16 Terrain Scan Range 14 Terrain Scan Density 10 Armor Coverage 150 Evasion (%) 50 Recoil Reduction 3 Offensive Hacking 20 Item Schematics ----------------- None Robot Schematics ------------------ None Fabricated ------------ Nothing Repaired ---------- Lgt. Treads | 17% | -8/Materials Hrd. Light Armor Plating | 10% | -8/Materials Lgt. Treads | 39% | -8/Materials Studied --------- None Alien Tech Used ----------------- None Achievements -------------- None Challenges ------------ None Game ------ Seed MasterInsulatedImmobilizer Manual? 0 Play Time 00:29:11 Cumulative 13.0 hours Start 2026.01.22 @ 17:09:24 End 2026.01.22 @ 17:41:20 Sessions 1 Manual Loads 0 Difficulty Rogue Special Mode None Game No. 23 Rogue 23 Adventurer 0 Explorer 0 Win Type - Total 0 Types 0/0/0/0/0/0/0/0/0/0 Lore% 12 Gallery% 17 Achievement% 16 Wizard Run 0 Options --------- Layout 2 ASCII 0 Keyboard 0 Movement Mouse Keybinds 0 Fullscreen 1 Font 24/Smallcaps Map View 50x44 Zoom Use 0% Tactical HUD 0 Map Filters NONE Filters NONE Steam 1 RUN: 83978bea-7000-4c6c-b3c0-593a0c578600